bitfinex-derivatives/quotes_SOLF0:USTF0_20250929
["timestamp","ask_amount","ask_price","bid_price","bid_amount"]
[1759157243348,7.52,212.4,212.3,4.2367]
[1759157243646,7.52,212.45,212.3,13.85416716]
[1759157243844,7.52,212.45,212.32,4.2363]
[1759157244044,7.52,212.45,212.34,8.66302897]
[1759157244245,7.67,212.5,212.39,8.66302897]
[1759157244445,65.833,212.54,212.33,88.60302897]
[1759157244649,7.67,212.51,212.33,88.60302897]
[1759157245248,7.67,212.51,212.38,8.66302897]
[1759157245551,7.67,212.51,212.3,52.21416624]
[1759157245552,7.67,212.51,212.36,80.2]
[1759157245744,7.67,212.51,212.34,102.72]
[1759157246246,7.67,212.51,212.33,8.66302897]
[1759157246647,7.67,212.51,212.34,52.91058619]
[1759157247046,7.67,212.51,212.38,8.66302897]
[1759157247247,7.67,212.51,212.33,363.76789135]
[1759157247448,7.67,212.51,212.34,125.68408204]
[1759157247649,7.67,212.51,212.34,121.86]
[1759157247850,7.67,212.51,212.33,363.76789135]
[1759157248154,7.67,212.51,212.34,125.62]
[1759157248553,65.8237,212.57,212.34,125.62]
[1759157248554,7.67,212.59,212.43,8.66302897]
[1759157248755,7.67,212.59,212.44,125.62]
[1759157249144,7.67,212.59,212.34,65.8927]
[1759157249351,7.67,212.59,212.43,8.66302897]
[1759157249653,65.8095,212.62,212.35,129.91187117]
[1759157249654,7.67,212.57,212.35,8.66302897]
[1759157249952,7.67,212.53,212.36,126.08]
[1759157250152,65.842,212.51,212.3,330.9807412]
[1759157250352,65.842,212.51,212.3,14.4607412]
[1759157250353,16.33302897,212.49,212.3,14.4607412]
[1759157250550,65.8519,212.48,212.22,325.16302897]
[1759157250755,4.2338,212.46,212.23,129.91139915]
[1759157250942,7.67,212.47,212.24,3.81139915]
[1759157251148,7.67,212.47,212.25,3.81139915]
[1759157251352,73.5242,212.47,212.25,3.81139915]
[1759157251555,73.5242,212.47,212.26,126.1]
[1759157251755,7.67,212.47,212.27,129.86660953]
[1759157251948,7.67,212.47,212.28,126.04]
[1759157252448,11.9036,212.47,212.29,126.04]
[1759157253053,7.67,212.47,212.29,126.04]
[1759157253356,7.67,212.47,212.32,8.66302897]
[1759157253853,7.67,212.52,212.32,8.66302897]
[1759157254555,11.9025,212.52,212.32,8.66302897]
[1759157254857,7.67,212.52,212.33,119.44]
[1759157255062,4.233,212.5,212.34,118.0]
[1759157255359,7.67,212.49,212.35,116.72]
[1759157256256,7.67,212.49,212.36,134.40302897]
[1759157256456,7.67,212.49,212.36,8.66302897]
[1759157257063,7.67,212.49,212.37,41.24]
[1759157257654,7.67,212.49,212.36,8.66302897]
[1759157257856,73.5186,212.49,212.36,8.66302897]
[1759157258157,7.67,212.49,212.36,8.66302897]
[1759157259453,4.2337,212.46,212.36,8.66302897]
[1759157259653,4.2337,212.46,212.24,80.11996142]
[1759157259654,7.67,212.49,212.34,125.5]
[1759157259857,4.2337,212.46,212.34,125.42]
[1759157260062,7.67,212.46,212.25,8.66302897]
[1759157260253,7.67,212.46,212.26,195.11855386]
[1759157260454,7.67,212.46,212.34,8.66302897]
[1759157260659,7.67,212.46,212.34,134.10302897]
[1759157261259,4.233,212.5,212.34,134.10302897]
[1759157262264,7.67,212.49,212.34,8.66302897]
[1759157262555,7.67,212.47,212.29,8.66302897]
[1759157262749,7.67,212.54,212.39,8.66302897]
[1759157262953,65.8365,212.53,212.39,8.66302897]
[1759157263149,7.67,212.49,212.32,106.58]
[1759157263358,7.67,212.49,212.33,8.66302897]
[1759157263561,7.67,212.49,212.32,106.58]
[1759157263759,7.67,212.47,212.29,8.66302897]
[1759157264566,65.8949,212.34,212.19,8.66302897]
[1759157264766,65.8949,212.34,212.15,8.66302897]
[1759157264767,7.67,212.33,212.15,8.66302897]
[1759157265065,7.67,212.33,212.16,3.80763312]
[1759157265261,4.2368,212.3,212.12,21.6204]
[1759157265464,4.2368,212.3,212.13,3.80919876]
[1759157265765,7.67,212.33,212.14,8.04919876]
[1759157265766,11.9064,212.33,212.14,8.04919876]
[1759157265965,7.67,212.33,212.15,3.80919876]
[1759157266469,4.2371,212.29,212.15,3.80919876]
[1759157267363,7.67,212.29,212.15,3.80919876]
[1759157267961,7.67,212.29,212.15,8.04899876]
[1759157268266,7.67,212.29,212.16,3.80919876]
[1759157269162,7.67,212.38,212.16,3.80919876]
[1759157269366,7.67,212.38,212.17,3.80919876]
[1759157269565,4.2358,212.35,212.17,4.2393]
[1759157269763,7.67,212.34,212.17,4.2393]
[1759157269963,7.67,212.34,212.16,65.9496]
[1759157270164,65.8683,212.43,212.19,8.66302897]
[1759157270469,7.67,212.4,212.19,8.66302897]
[1759157270863,7.67,212.4,212.2,4.2387]
[1759157271368,7.67,212.4,212.21,126.08]
[1759157271867,4.2354,212.37,212.2,4.2387]
[1759157272064,7.67,212.36,212.21,126.04]
[1759157272565,7.67,212.36,212.24,8.66302897]
[1759157272764,7.67,212.42,212.24,8.66302897]
[1759157273159,7.67,212.42,212.29,8.66302897]
[1759157273362,7.67,212.42,212.29,134.62302897]
[1759157273759,7.67,212.42,212.29,138.86002897]
[1759157275465,7.67,212.42,212.31,4.2366]
[1759157275669,7.67,212.42,212.29,134.62302897]
[1759157275968,7.67,212.42,212.3,4.2368]
[1759157276464,7.67,212.42,212.29,134.62302897]
[1759157276465,5.47041622,212.49,212.32,4.2364]
[1759157276673,7.42,212.48,212.32,4.2364]
[1759157276860,7.42,212.48,212.29,134.62302897]
[1759157276861,11.6534,212.48,212.29,134.62302897]
[1759157277273,7.42,212.48,212.29,138.86002897]
[1759157277771,4.2337,212.46,212.29,134.62302897]
[1759157278370,7.42,212.43,212.25,8.66302897]
[1759157278566,7.42,212.43,212.3,125.58]
[1759157279070,7.42,212.43,212.25,8.66302897]
[1759157279071,7.42,212.43,212.26,65.9181]
[1759157279471,7.42,212.43,212.27,125.48]
[1759157280263,7.42,212.43,212.25,36.80655353]
[1759157280468,7.42,212.42,212.25,125.36]
[1759157280670,7.42,212.41,212.25,125.36]
[1759157280867,65.8703,212.42,212.25,125.36]
[1759157281071,4.2353,212.38,212.25,125.36]
[1759157281274,7.42,212.37,212.25,125.36]
[1759157281768,7.42,212.36,212.21,354.67175744]
[1759157281963,7.42,212.36,212.21,480.07175744]
[1759157282965,65.8883,212.36,212.21,354.67175744]
[1759157283167,7.42,212.35,212.21,316.34]
[1759157283472,65.8883,212.36,212.13,13.962864]
[1759157283473,7.42,212.32,212.13,13.962864]
[1759157283673,73.333,212.28,212.12,0.35969]
[1759157283869,7.42,212.26,212.12,37.97994796]
[1759157284069,7.42,212.26,212.12,0.35969]
[1759157284466,7.42,212.22,212.12,14.26518598]
[1759157284665,73.355,212.21,212.12,0.35969]
[1759157284871,7.42,212.19,212.12,0.35969]
[1759157285172,382.2113,212.29,212.12,0.35969]
[1759157285173,133.94302897,212.28,212.12,0.35969]
[1759157285475,7.42,212.27,212.12,0.35969]
[1759157285872,7.42,212.34,212.14,65.956]
[1759157286068,7.42,212.35,212.15,125.38]
[1759157286281,7.42,212.35,212.17,65.9461]
[1759157286474,7.42,212.35,212.2,4.2387]
[1759157286768,7.42,212.35,212.19,65.9393]
[1759157286975,7.42,212.35,212.2,125.54]
[1759157287173,7.42,212.35,212.18,4.2391]
[1759157287373,7.42,212.35,212.21,125.6]
[1759157287773,7.42,212.35,212.18,8.66302897]
[1759157288070,7.42,212.35,212.19,62.0]
[1759157288275,7.42,212.35,212.19,187.6]
[1759157288467,7.42,212.35,212.19,62.0]
[1759157288778,7.42,212.34,212.2,125.58]
[1759157289274,7.42,212.32,212.13,363.25602669]
[1759157289478,7.42,212.32,212.17,125.56]
[1759157289682,7.42,212.31,212.13,37.54134665]
[1759157289977,7.42,212.31,212.16,125.52]
[1759157290375,7.42,212.3,212.15,125.48]
[1759157291078,65.9037,212.31,212.15,125.48]
[1759157291373,7.42,212.3,212.15,125.48]
[1759157291574,4.2373,212.28,212.15,125.48]
[1759157291882,7.42,212.27,212.15,125.48]
[1759157292073,7.42,212.34,212.16,125.36]
[1759157292268,7.42,212.34,212.16,134.02302897]
[1759157292473,7.42,212.34,212.16,138.26252897]
[1759157293476,7.42,212.34,212.16,12.90252897]
[1759157293671,7.42,212.34,212.17,125.38]
[1759157294074,4.2362,212.33,212.18,125.28]
[1759157294269,7.42,212.34,212.18,129.5191]
[1759157294577,69.74,212.39,212.2,65.9376]
[1759157294779,69.74,212.39,212.21,65.9331]
[1759157294972,7.72,212.39,212.22,65.9304]
[1759157295276,7.72,212.39,212.24,65.9248]
[1759157295483,7.72,212.39,212.26,4.2376]
[1759157295679,7.72,212.39,212.27,125.26]
[1759157296287,7.72,212.39,212.25,5.37758035]
[1759157296587,7.72,212.39,212.26,49.38]
[1759157296880,7.72,212.39,212.24,5.37758035]
[1759157297083,7.72,212.39,212.25,100.3]
[1759157297471,7.72,212.39,212.19,67.37758035]
[1759157297674,71.25058035,212.41,212.2,125.16]
[1759157297883,5.37758035,212.37,212.19,5.37758035]
[1759157298076,7.72,212.34,212.18,36.82043036]
[1759157298282,7.72,212.34,212.17,83.56]
[1759157298682,4.2365,212.32,212.18,4.2391]
[1759157298985,7.72,212.31,212.16,125.16]
[1759157299284,7.72,212.31,212.17,4.2394]
[1759157299484,11.9569,212.3,212.14,37.68077948]
[1759157299686,5.37758035,212.28,212.13,125.04]
[1759157299885,7.72,212.27,212.13,129.2801]
[1759157300075,7.72,212.27,212.13,125.04]
[1759157300781,7.72,212.27,212.14,65.9564]
[1759157301080,382.2638,212.38,212.19,65.9407]
[1759157301081,7.72,212.32,212.19,65.9407]
[1759157301386,7.72,212.32,212.22,65.9316]
[1759157301589,324.1,212.38,212.24,65.9247]
[1759157301780,324.1,212.38,212.27,4.2373]
[1759157302986,328.3353,212.38,212.24,4.2378]
[1759157303183,328.3353,212.38,212.22,71.30918035]
[1759157303783,7.72,212.37,212.23,4.238]
[1759157303979,4.2356,212.36,212.23,4.238]
[1759157304179,7.72,212.37,212.27,65.9145]
[1759157304579,7.5,212.43,212.27,65.9145]
[1759157304780,7.5,212.43,212.28,4.2371]
[1759157305078,7.5,212.42,212.23,71.30478035]
[1759157305283,4.2352,212.38,212.27,4.2374]
[1759157305476,7.5,212.37,212.23,85.06]
[1759157305675,7.5,212.37,212.23,65.9283]
[1759157305878,7.5,212.37,212.26,65.9186]
[1759157306581,7.5,212.37,212.3,4.2368]
[1759157307982,7.5,212.37,212.32,4.2364]
[1759157308182,7.5,212.41,212.27,65.9134]
[1759157308384,7.5,212.41,212.31,4.2365]
[1759157308584,7.5,212.41,212.28,65.9129]
[1759157308788,7.5,212.41,212.29,65.9094]
[1759157308986,7.5,212.41,212.27,65.9158]
[1759157309380,129.17758035,212.43,212.23,65.9281]
[1759157309584,5.37758035,212.38,212.24,65.923]
[1759157309783,7.5,212.37,212.24,65.923]
[1759157309984,7.5,212.37,212.29,4.237]
[1759157311989,7.5,212.37,212.31,4.2366]
[1759157314696,7.5,212.4,212.32,4.2363]
[1759157314895,7.5,212.4,212.31,65.9025]
[1759157315194,7.5,212.4,212.32,65.9004]
[1759157315395,7.5,212.4,212.32,4.2364]
[1759157315693,7.5,212.4,212.3,65.9067]
[1759157315888,7.5,212.4,212.29,65.9078]
[1759157317497,7.5,212.4,212.34,4.236]
[1759157318695,4.2344,212.43,212.35,4.2357]
[1759157318899,7.5,212.42,212.33,65.8968]
[1759157319096,7.5,212.48,212.37,65.88]
[1759157319304,7.5,212.48,212.36,65.8849]
[1759157319492,7.5,212.48,212.38,65.8779]
[1759157319694,7.5,212.48,212.39,65.8736]
[1759157320096,7.5,212.58,212.44,65.8581]
[1759157320297,124.08,212.57,212.4,65.8705]
[1759157320598,7.5,212.53,212.44,65.8588]
[1759157320796,7.5,212.53,212.46,65.8523]
[1759157321300,5.37758035,212.61,212.46,65.8523]
[1759157321496,7.5,212.71,212.55,65.825]
[1759157321691,7.5,212.69,212.54,65.8272]
[1759157321891,7.5,212.69,212.58,4.2309]
[1759157322094,7.5,212.69,212.57,65.8189]
[1759157322298,7.5,212.69,212.59,65.8116]
[1759157322600,13.92108614,212.76,212.66,5.37758035]
[1759157322798,13.92108614,212.76,212.71,65.7715]
[1759157322995,13.92108614,212.76,212.7,5.37758035]
[1759157323197,13.92108614,212.76,212.69,65.7758]
[1759157323198,13.92108614,212.76,212.64,65.7928]
[1759157323401,7.5,212.72,212.55,5.37758035]
[1759157323601,77.4967,212.72,212.55,5.37758035]
[1759157323814,7.5,212.7,212.51,5.37758035]
[1759157324098,7.5,212.7,212.59,5.37758035]
[1759157325405,7.5,212.7,212.57,5.37758035]
[1759157326402,7.5,212.7,212.55,5.37758035]
[1759157327599,77.5037,212.7,212.49,37.17931968]
[1759157327805,7.5,212.68,212.53,5.37758035]
[1759157329405,7.5,212.66,212.44,316.26]
[1759157329603,7.5,212.66,212.49,5.37758035]
[1759157329997,7.5,212.66,212.57,5.37758035]
[1759157331409,7.5,212.66,212.53,5.37758035]
[1759157331905,11.7292,212.66,212.53,5.37758035]
[1759157332102,65.792,212.65,212.5,5.37758035]
[1759157332303,7.5,212.63,212.48,5.37758035]
[1759157332508,7.5,212.61,212.48,5.37758035]
[1759157333109,7.5,212.59,212.44,354.54118796]
[1759157333409,7.5,212.58,212.44,354.54118796]
[1759157333609,4.2313,212.56,212.44,38.28118796]
[1759157333808,4.2313,212.56,212.43,5.37758035]
[1759157334209,7.97,212.55,212.43,5.37758035]
[1759157334600,4.2316,212.54,212.4,87.13758035]
[1759157334802,7.97,212.55,212.4,87.13758035]
[1759157334803,7.97,212.53,212.4,5.37758035]
[1759157335004,7.97,212.53,212.4,38.15030055]
[1759157335205,7.97,212.49,212.37,5.37758035]
[1759157335407,65.8502,212.46,212.37,13.85383556]
[1759157335604,65.8441,212.48,212.35,0.42397]
[1759157335605,7.97,212.45,212.35,0.42397]
[1759157337107,7.97,212.45,212.35,14.75626705]
[1759157337312,7.97,212.45,212.35,0.42397]
[1759157337612,71.21288035,212.51,212.37,5.37758035]
[1759157337613,7.97,212.51,212.37,5.37758035]
[1759157337914,7.97,212.51,212.35,0.42397]
[1759157337915,73.8056,212.51,212.36,5.37758035]
[1759157338509,4.2324,212.5,212.36,5.37758035]
[1759157338705,7.97,212.51,212.4,5.37758035]
[1759157339608,12.2023,212.51,212.4,5.37758035]
[1759157340212,7.97,212.51,212.38,5.37758035]
[1759157340411,7.97,212.57,212.42,5.37758035]
[1759157340819,4.2312,212.56,212.42,5.37758035]
[1759157341115,65.8195,212.56,212.42,5.37758035]
[1759157341314,4.2317,212.54,212.42,5.37758035]
[1759157341516,7.97,212.57,212.42,5.37758035]
[1759157341917,12.2011,212.57,212.42,5.37758035]
[1759157342119,7.97,212.57,212.42,5.37758035]
[1759157342412,7.97,212.54,212.42,5.37758035]
[1759157343014,12.2017,212.54,212.42,5.37758035]
[1759157344122,65.8169,212.57,212.35,14.26295586]
[1759157344123,7.97,212.52,212.38,5.37758035]
[1759157344717,4.2322,212.51,212.38,5.37758035]
[1759157345218,73.8022,212.52,212.38,5.37758035]
[1759157345719,4.2324,212.5,212.38,5.37758035]
[1759157345914,7.97,212.49,212.35,51.50295586]
[1759157346114,7.97,212.46,212.35,14.26295586]
[1759157346318,4.234,212.42,212.35,14.26295586]
[1759157346515,7.97,212.43,212.35,0.42397]
[1759157346720,65.8633,212.42,212.35,0.42397]
[1759157346919,7.97,212.41,212.35,0.42397]
[1759157347425,7.97,212.37,212.35,0.42397]
[1759157347614,7.97,212.43,212.35,0.42397]
[1759157348015,4.2346,212.39,212.35,0.42397]
[1759157348212,124.66,212.41,212.35,0.42397]
[1759157348829,7.97,212.39,212.35,0.42397]
[1759157349013,4.2344,212.4,212.35,0.42397]
[1759157349214,7.97,212.39,212.35,0.42397]
[1759157349714,132.57,212.42,212.35,0.42397]
[1759157349915,7.97,212.42,212.35,0.42397]
[1759157350227,132.55,212.42,212.35,0.42397]
[1759157350430,7.97,212.42,212.35,0.42397]
[1759157350620,128.7743,212.41,212.35,0.42397]
[1759157350820,124.54,212.41,212.35,0.42397]
[1759157351126,7.97,212.4,212.35,0.42397]
[1759157351321,124.54,212.41,212.35,0.42397]
[1759157351526,132.53,212.41,212.35,0.42397]
[1759157351725,7.97,212.41,212.35,0.42397]
[1759157354223,12.2042,212.41,212.35,0.42397]
[1759157354630,7.97,212.41,212.35,0.42397]
[1759157355223,12.2044,212.41,212.35,0.42397]
[1759157356225,4.2347,212.39,212.35,0.42397]
[1759157356419,7.5,212.41,212.35,0.42397]
[1759157356624,7.5,212.38,212.23,12.1309858]
[1759157356825,4.235,212.37,212.23,12.1309858]
[1759157357028,7.5,212.38,212.27,5.37758035]
[1759157358427,7.5,212.38,212.23,15.39802483]
[1759157358731,7.5,212.36,212.23,15.39802483]
[1759157359123,4.2362,212.31,212.23,21.23084836]
[1759157359328,7.5,212.31,212.23,21.23084836]
[1759157360228,11.7352,212.36,212.23,21.23084836]
[1759157360726,7.5,212.36,212.23,21.23084836]
[1759157360929,65.861,212.43,212.26,8.64461938]
[1759157360930,131.68,212.43,212.26,8.64461938]
[1759157362033,197.54,212.43,212.26,8.64461938]
[1759157362229,135.9139,212.43,212.26,8.64461938]
[1759157362431,131.68,212.43,212.26,8.64461938]
[1759157362639,131.68,212.43,212.26,12.88171938]
[1759157362837,7.5,212.43,212.26,8.64461938]
[1759157363738,7.5,212.43,212.28,4.2367]
[1759157363941,7.5,212.43,212.28,11.0928144]
[1759157364238,7.5,212.43,212.31,8.64461938]
[1759157365144,7.41,212.48,212.31,70.64461938]
[1759157365535,7.41,212.48,212.31,8.64461938]
[1759157365836,7.41,212.48,212.31,96.16461938]
[1759157366438,4.233,212.47,212.31,100.40061938]
[1759157367235,4.233,212.47,212.32,4.2358]
[1759157367435,7.41,212.48,212.32,4.2358]
[1759157367631,65.8416,212.49,212.31,96.16461938]
[1759157367837,4.234,212.42,212.31,8.64461938]
[1759157368037,11.644,212.42,212.31,8.64461938]
[1759157368440,7.41,212.42,212.31,8.64461938]
[1759157369047,7.41,212.42,212.28,6.8561144]
[1759157369447,7.41,212.42,212.3,8.64461938]
[1759157370742,7.41,212.4,212.28,6.8561144]
[1759157371446,11.6454,212.36,212.28,6.8561144]
[1759157372245,7.41,212.36,212.28,6.8561144]
[1759157372543,7.41,212.45,212.28,6.8561144]
[1759157372743,4.234,212.43,212.28,11.0927144]
[1759157373455,4.234,212.43,212.28,6.8561144]
[1759157373744,65.857,212.44,212.28,6.8561144]
[1759157373951,73.2698,212.43,212.28,6.8561144]
[1759157374343,4.2348,212.39,212.28,6.8561144]
[1759157374544,11.6448,212.39,212.28,6.8561144]
[1759157375443,7.41,212.45,212.28,6.8561144]
[1759157375648,7.41,212.45,212.31,8.64461938]
[1759157376050,7.41,212.45,212.33,4.2358]
[1759157376252,7.41,212.45,212.33,10.93666102]
[1759157376648,7.41,212.45,212.33,6.70086102]
[1759157377853,7.41,212.45,212.35,4.2354]
[1759157378555,7.41,212.45,212.33,6.70086102]
[1759157379150,7.41,212.45,212.33,10.93656102]
[1759157379946,7.41,212.45,212.33,6.70086102]
[1759157380453,4.2337,212.44,212.33,6.70086102]
[1759157380646,7.41,212.45,212.33,6.70086102]
[1759157381159,7.41,212.45,212.33,10.93656102]
[1759157381859,7.41,212.45,212.33,6.70086102]
[1759157382658,73.265,212.45,212.33,6.70086102]
[1759157382859,7.41,212.39,212.33,6.70086102]
[1759157383261,7.41,212.48,212.33,6.70086102]
[1759157384558,4.2338,212.44,212.33,6.70086102]
[1759157384753,7.41,212.43,212.33,6.70086102]
[1759157386361,7.41,212.39,212.33,6.70086102]
[1759157387571,11.6448,212.39,212.33,6.70086102]
[1759157389070,189.2215,212.43,212.33,6.70086102]
[1759157389071,4.2351,212.37,212.33,6.70086102]
[1759157389272,7.41,212.36,212.33,6.70086102]
[1759157389472,7.41,212.4,212.33,6.70086102]
[1759157389864,4.2354,212.36,212.33,6.70086102]
[1759157390065,7.41,212.35,212.33,6.70086102]
[1759157390373,7.41,212.34,212.33,6.70086102]
[1759157391269,7.89,212.34,212.28,6.8561144]
[1759157391474,7.41,212.34,212.28,6.8561144]
[1759157393271,11.6458,212.34,212.28,6.8561144]
[1759157393774,4.2361,212.32,212.28,6.8561144]
[1759157393977,7.41,212.34,212.28,6.8561144]
[1759157394179,65.8953,212.32,212.28,6.8561144]
[1759157394575,4.2366,212.3,212.28,6.8561144]
[1759157394771,7.97,212.29,212.28,6.8561144]
[1759157394972,122.98,212.31,212.28,6.8561144]
[1759157395173,7.97,212.3,212.28,6.8561144]
[1759157395469,122.98,212.31,212.28,6.8561144]
[1759157395776,7.97,212.29,212.28,6.8561144]
[1759157396078,7.97,212.29,212.23,21.23084836]
[1759157396476,96.88,212.31,212.23,21.23084836]
[1759157397269,7.97,212.3,212.23,6.75340545]
[1759157398477,7.97,212.26,212.23,6.75340545]
[1759157398780,122.8,212.28,212.23,6.75340545]
[1759157399879,7.97,212.27,212.23,6.75340545]
[1759157400084,7.97,212.32,212.23,6.75340545]
[1759157400282,122.64,212.31,212.23,6.75340545]
[1759157400487,122.64,212.3,212.23,6.75340545]
[1759157400676,4.2368,212.29,212.23,6.75340545]
[1759157400876,126.8768,212.29,212.23,6.75340545]
[1759157401175,12.2062,212.32,212.23,6.75340545]
[1759157401377,122.64,212.31,212.23,6.75340545]
[1759157401779,4.2368,212.29,212.23,6.75340545]
[1759157401979,7.97,212.32,212.23,6.75340545]
[1759157402479,4.2367,212.29,212.23,6.75340545]
[1759157403082,7.97,212.32,212.23,6.75340545]
[1759157403277,7.97,212.37,212.23,6.75340545]
[1759157403577,4.2346,212.4,212.23,6.75340545]
[1759157403779,122.58,212.39,212.25,4.2374]
[1759157403979,122.58,212.39,212.24,8.64461938]
[1759157404683,7.97,212.42,212.24,8.64461938]
[1759157404883,122.58,212.39,212.24,8.64461938]
[1759157405071,4.2343,212.41,212.24,8.64461938]
[1759157405276,4.2343,212.41,212.24,13.75909942]
[1759157406580,4.2343,212.41,212.28,4.2367]
[1759157406782,4.2343,212.41,212.24,13.75909942]
[1759157407577,4.2347,212.39,212.24,13.75909942]
[1759157407778,7.97,212.38,212.24,8.64461938]
[1759157408278,4.2342,212.42,212.24,8.64461938]
[1759157408585,29.9742,212.42,212.24,8.64461938]
[1759157408785,4.2342,212.42,212.24,8.64461938]
[1759157409180,7.97,212.43,212.29,8.64461938]
[1759157409485,7.97,212.43,212.29,14.979544]
[1759157410485,4.2341,212.42,212.29,14.979544]
[1759157410888,55.49,212.5,212.29,14.979544]
[1759157411292,7.97,212.49,212.29,14.979544]
[1759157412086,7.97,212.47,212.29,14.979544]
[1759157412287,65.849,212.47,212.29,14.979544]
[1759157412482,7.97,212.46,212.29,14.979544]
[1759157412794,7.97,212.42,212.29,14.979544]
[1759157413788,74.2872,212.55,212.32,4.236]
[1759157413789,54.4631,212.47,212.32,4.236]
[1759157413980,50.23,212.47,212.32,4.236]
[1759157414690,4.2334,212.46,212.32,4.236]
[1759157414991,50.23,212.47,212.3,4.2364]
[1759157415292,50.23,212.47,212.29,6.33492462]
[1759157415493,7.27,212.47,212.31,4.2361]
[1759157415890,4.2336,212.45,212.31,4.2361]
[1759157416686,4.2338,212.44,212.31,4.2361]
[1759157416895,11.5038,212.44,212.29,6.33492462]
[1759157417294,4.234,212.42,212.29,6.33492462]
[1759157417695,7.27,212.44,212.29,6.33492462]
[1759157418297,7.27,212.44,212.31,5.37511959]
[1759157419503,7.27,212.44,212.35,5.37511959]
[1759157419701,32.2728,212.49,212.35,11.85771293]
[1759157419702,7.27,212.48,212.35,11.85771293]
[1759157420598,7.27,212.55,212.36,66.3616]
[1759157420798,7.27,212.55,212.43,5.37511959]
[1759157420994,10.87511959,212.65,212.47,5.37511959]
[1759157420995,4.2301,212.62,212.47,5.37511959]
[1759157421500,7.27,212.64,212.47,5.37511959]
[1759157421697,65.8093,212.6,212.44,37.94]
[1759157421897,5.37511959,212.61,212.43,6.52723589]
[1759157421898,7.27,212.59,212.43,6.52723589]
[1759157422093,4.2313,212.56,212.43,6.52723589]
[1759157422296,7.27,212.55,212.43,6.52723589]
[1759157424698,7.8,212.6,212.44,5.37511959]
[1759157425801,7.8,212.58,212.44,5.37511959]
[1759157426101,7.8,212.58,212.43,6.52723589]
[1759157426503,12.0309,212.58,212.43,6.52723589]
[1759157426702,7.8,212.58,212.43,6.52723589]
[1759157427099,4.2313,212.56,212.43,6.52723589]
[1759157427900,7.8,212.59,212.44,4.2336]
[1759157428104,7.8,212.59,212.46,5.37511959]
[1759157428700,7.8,212.67,212.5,5.37511959]
[1759157428897,7.8,212.67,212.5,11.9559819]
[1759157429105,7.8,212.67,212.54,5.37511959]
[1759157430306,7.8,212.67,212.5,69.8759819]
[1759157430507,7.8,212.66,212.5,69.8759819]
[1759157430708,65.7863,212.67,212.5,69.8759819]
[1759157430910,7.8,212.63,212.5,69.8759819]
[1759157432007,7.8,212.63,212.5,107.23336617]
[1759157432813,7.8,212.63,212.5,64.50086231]
[1759157433010,7.8,212.64,212.5,64.50086231]
[1759157433212,65.7931,212.65,212.5,64.50086231]
[1759157433408,12.0298,212.64,212.5,64.50086231]
[1759157433610,130.68,212.64,212.5,64.50086231]
[1759157433809,7.8,212.63,212.5,64.50086231]
[1759157434005,4.2305,212.6,212.5,64.50086231]
[1759157434212,7.8,212.59,212.5,6.58086231]
[1759157435508,12.0307,212.59,212.5,6.58086231]
[1759157435813,7.8,212.59,212.5,6.58086231]
[1759157437116,130.44,212.59,212.5,6.58086231]
[1759157437517,4.2309,212.58,212.5,6.58086231]
[1759157438210,130.42,212.59,212.5,6.58086231]